bitfinex/quotes_SOLUSD_20250626
["timestamp","ask_amount","ask_price","bid_price","bid_amount"]
[1750897836209,5.18715607,143.92,143.9,25.59879163]
[1750897836489,36.61253288,143.96,143.9,25.59879163]
[1750897836676,5.18791449,143.95,143.9,25.59879163]
[1750897836875,5.18791449,143.94,143.9,25.59879163]
[1750897837070,5.18791449,143.93,143.91,0.28432314]
[1750897837275,5.18791449,143.92,143.91,0.28432314]
[1750897838099,5.18791449,143.92,143.9,25.59879163]
[1750897838279,36.61251903,143.96,143.9,25.59879163]
[1750897838471,5.18927768,143.95,143.9,25.59879163]
[1750897838666,5.18927768,143.94,143.9,25.59879163]
[1750897838872,5.18927768,143.93,143.9,18.64964886]
[1750897839180,5.18927768,143.92,143.9,18.64964886]
[1750897839493,5.18927768,143.91,143.9,18.64964886]
[1750897841797,5.18927768,143.91,143.9,25.88324232]
[1750897843773,5.18927768,143.91,143.9,18.64964886]
[1750897843972,5.18927768,143.91,143.89,1.6359]
[1750897844192,5.18927768,143.9,143.89,20.28554886]
[1750897845283,5.18927768,143.9,143.89,18.64964886]
[1750897845496,5.18927768,143.9,143.88,0.02]
[1750897845696,5.18927768,143.89,143.88,0.02]
[1750897846494,11.6339448,143.89,143.88,0.02]
[1750897847174,5.18927768,143.89,143.88,0.02]
[1750897853680,9.35912965,143.89,143.88,0.02]
[1750897857388,5.18927768,143.89,143.88,0.02]
[1750897858812,146.5,143.9,143.88,0.02]
[1750897859396,146.5,143.9,143.89,18.64964886]
[1750897859697,151.68177613,143.9,143.89,18.64964886]
[1750897860510,146.5,143.9,143.89,18.64964886]
[1750897860710,6.06,143.92,143.89,18.64964886]
[1750897861012,5.18179527,143.91,143.89,18.64964886]
[1750897861215,30.16849061,143.94,143.89,18.64964886]
[1750897861414,5.18178344,143.93,143.89,18.64964886]
[1750897861598,5.18178344,143.92,143.89,18.64964886]
[1750897861797,5.18178344,143.91,143.89,18.64964886]
[1750897862004,30.16849061,143.94,143.89,18.64964886]
[1750897862209,5.18221191,143.93,143.89,18.64964886]
[1750897862399,5.18221191,143.92,143.89,18.64964886]
[1750897862604,5.18221191,143.91,143.89,18.64964886]
[1750897862802,4.16876661,143.93,143.89,18.64964886]
[1750897863111,5.18259355,143.92,143.89,18.64964886]
[1750897863417,4.16876661,143.93,143.89,18.64964886]
[1750897863418,5.18259355,143.91,143.89,18.64964886]
[1750897863622,5.18259355,143.9,143.89,18.64964886]
[1750897865723,5.18259355,143.9,143.88,0.02]
[1750897865899,5.18425227,143.89,143.88,18.66964886]
[1750897867417,5.18425227,143.89,143.88,0.02]
[1750897869521,9.35410424,143.89,143.88,0.02]
[1750897869697,11.62891939,143.89,143.88,0.02]
[1750897869901,5.18425227,143.89,143.88,0.02]
[1750897871223,9.35410424,143.89,143.88,0.02]
[1750897871600,15.79877136,143.89,143.88,0.02]
[1750897876426,16.22525607,143.89,143.88,0.02]
[1750897876630,26.0,143.86,143.85,0.02]
[1750897876828,31.18425227,143.86,143.85,0.02]
[1750897877432,37.66675975,143.86,143.85,0.02]
[1750897878227,41.83748128,143.86,143.85,0.02]
[1750897881439,35.3549738,143.86,143.85,0.02]
[1750897883445,35.78145851,143.86,143.85,0.02]
[1750897884919,44.42444014,143.86,143.85,0.02]
[1750897885537,35.78145851,143.86,143.85,0.02]
[1750897886635,0.14216157,143.85,143.82,0.02]
[1750897886833,6.89441941,143.83,143.82,0.02]
[1750897887037,12.07867168,143.83,143.82,0.02]
[1750897887541,5.61073698,143.83,143.82,0.02]
[1750897887738,12.07867168,143.83,143.82,0.02]
[1750897888445,16.25026314,143.83,143.82,0.02]
[1750897890436,9.78232844,143.83,143.82,0.02]
[1750897890827,16.25026314,143.83,143.82,0.02]
[1750897891228,9.78232844,143.83,143.82,0.02]
[1750897891551,26.0,143.8,143.79,0.02]
[1750897891724,35.35671402,143.8,143.79,0.02]
[1750897893141,30.17246175,143.8,143.79,0.02]
[1750897893339,35.35671402,143.8,143.79,0.02]
[1750897893540,4.17246175,143.8,143.79,0.02]
[1750897893754,9.35671402,143.8,143.79,0.02]
[1750897894046,4.17246175,143.8,143.79,0.02]
[1750897894243,9.78319873,143.8,143.79,0.02]
[1750897895537,4.59894646,143.8,143.79,0.02]
[1750897895844,9.78319873,143.8,143.79,0.02]
[1750897896449,9.35671402,143.8,143.79,0.02]
[1750897896646,4.17246175,143.8,143.79,0.02]
[1750897897229,30.17246175,143.8,143.79,0.02]
[1750897898156,4.17246175,143.8,143.79,0.02]
[1750897898452,30.17246175,143.8,143.79,0.02]
[1750897898640,4.17246175,143.8,143.79,0.02]
[1750897898843,30.17246175,143.8,143.79,0.02]
[1750897899032,4.17246175,143.8,143.79,0.02]
[1750897899227,26.0,143.8,143.79,0.02]
[1750897899537,9.49858545,143.81,143.79,0.02]
[1750897899735,26.0,143.8,143.79,0.02]
[1750897899935,9.49858545,143.81,143.79,0.02]
[1750897900154,26.0,143.8,143.79,0.02]
[1750897900336,4.17246175,143.8,143.79,0.02]
[1750897900531,30.17246175,143.8,143.79,0.02]
[1750897900740,4.17246175,143.8,143.79,0.02]
[1750897900926,30.17246175,143.8,143.79,0.02]
[1750897901155,4.17246175,143.8,143.79,0.02]
[1750897901447,30.17246175,143.8,143.79,0.02]
[1750897901652,4.17246175,143.8,143.79,0.02]
[1750897901855,30.17246175,143.8,143.79,0.02]
[1750897904152,4.17246175,143.8,143.79,0.02]
[1750897904359,30.17246175,143.8,143.79,0.02]
[1750897904554,4.17246175,143.8,143.79,0.02]
[1750897906438,35.35671402,143.8,143.79,0.02]
[1750897908865,9.35671402,143.8,143.79,0.02]
[1750897909681,9.78319873,143.8,143.79,0.02]
[1750897909844,16.24272982,143.8,143.79,0.02]
[1750897910150,16.24272982,143.8,143.77,0.02]
[1750897910151,26.14216157,143.78,143.77,0.02]
[1750897910350,190.62122462,143.78,143.77,0.02]
[1750897911286,194.79426676,143.78,143.77,0.02]
[1750897911463,188.34377912,143.78,143.77,0.02]
[1750897915269,41.84377912,143.78,143.77,0.02]
[1750897916566,50.46769206,143.78,143.77,0.02]
[1750897916764,50.46769206,143.78,143.75,0.02]
[1750897916765,146.74432314,143.76,143.75,0.02]
[1750897916973,37.93081416,143.76,143.75,0.02]
[1750897918677,35.78435968,143.76,143.75,0.02]
[1750897919364,44.40827262,143.76,143.75,0.02]
[1750897919546,35.78435968,143.76,143.75,0.02]
[1750897920248,0.28432314,143.75,143.74,0.02]
[1750897920446,5.61073698,143.75,143.74,0.02]
[1750897922470,9.78465002,143.75,143.74,0.02]
[1750897923552,9.78465002,143.75,143.73,0.02]
[1750897923553,22.7031073,143.75,143.73,0.02]
[1750897923756,193.67884312,143.74,143.73,0.02]
[1750897924350,197.85304654,143.74,143.73,0.02]
[1750897925159,197.85304654,143.74,143.68,0.02]
[1750897925160,26.0,143.71,143.68,0.02]
[1750897925360,164.19445378,143.7,143.68,0.02]
[1750897925573,37.65445378,143.69,143.68,0.02]
[1750897926165,31.18425227,143.69,143.68,0.02]
[1750897926553,3.51765227,143.69,143.68,7.847]
[1750897926880,150.67440367,143.74,143.69,18.64964886]
[1750897927081,176.67440367,143.74,143.69,18.64964886]
[1750897927785,26.0,143.74,143.69,26.35204886]
[1750897927963,6.04,143.76,143.72,18.64964886]
[1750897928356,26.0,143.75,143.72,18.64964886]
[1750897930388,6.47020151,143.78,143.72,18.64964886]
[1750897930588,4.17310733,143.78,143.72,25.60750957]
[1750897930890,30.17310733,143.78,143.72,25.60750957]
[1750897932975,26.0,143.78,143.72,25.60750957]
[1750897933166,26.0,143.78,143.74,18.64964886]
[1750897933882,36.08,143.8,143.74,18.64964886]
[1750897933883,6.04,143.8,143.74,18.64964886]
[1750897934092,32.04,143.8,143.77,18.64964886]
[1750897935467,36.21259054,143.8,143.76,6.0638]
[1750897937681,42.68279205,143.8,143.76,6.0638]
[1750897938563,5.18088346,143.79,143.76,6.0638]
[1750897938782,5.18088346,143.78,143.76,6.0638]
[1750897938989,5.18088346,143.77,143.76,6.0638]
[1750897939166,9.35421586,143.77,143.76,6.0638]
[1750897939989,4.1733324,143.77,143.76,6.0638]
[1750897940184,5.18088346,143.77,143.76,6.0638]
[1750897940387,146.5,143.79,143.76,6.0638]
[1750897940388,5.18088346,143.78,143.76,24.71344886]
[1750897940580,5.18088346,143.77,143.76,24.71344886]
[1750897940769,146.5,143.79,143.77,18.64964886]
[1750897941089,4.17194266,143.82,143.77,25.6051824]
[1750897941308,5.17905003,143.81,143.79,18.64964886]
[1750897941460,5.17905003,143.82,143.79,18.64964886]
[1750897941789,5.17905003,143.81,143.79,18.64964886]
[1750897941976,5.17905003,143.82,143.79,18.64964886]
[1750897942170,11.21905003,143.83,143.8,6.5045]
[1750897943888,6.04,143.83,143.8,6.5045]
[1750897944187,11.21905003,143.83,143.8,6.5045]
[1750897944376,6.04,143.83,143.8,6.5045]
[1750897944575,6.04,143.83,143.81,18.64964886]
[1750897945182,9.35036558,143.84,143.81,18.64964886]
[1750897945978,5.17905003,143.84,143.81,18.64964886]
[1750897948192,4.17130663,143.84,143.81,18.64964886]
[1750897948991,176.67112056,143.85,143.81,18.64964886]
[1750897949183,172.5,143.85,143.81,18.64964886]
[1750897949895,176.67108246,143.85,143.81,18.64964886]
[1750897950287,146.5,143.85,143.83,18.64964886]
[1750897950485,0.04,143.86,143.83,18.64964886]
[1750897959500,0.04,143.86,143.83,25.60217018]
[1750897959811,0.04,143.86,143.84,13.61568915]
[1750897959989,0.04,143.86,143.84,41.93568915]
[1750897960501,0.04,143.86,143.85,18.933972]
[1750897962011,0.04,143.86,143.85,25.88565778]
[1750897963482,0.04,143.86,143.85,18.64964886]
[1750897964005,0.04,143.86,143.85,25.60133464]
[1750897965904,0.04,143.86,143.85,18.64964886]
[1750897976328,0.04,143.86,143.82,1.5467]
[1750897976498,5.16587007,143.85,143.84,18.64964886]
[1750897981133,9.33692002,143.85,143.81,18.64964886]
[1750897981308,5.16587007,143.84,143.81,18.64964886]
[1750897981510,5.16587007,143.83,143.81,18.64964886]
[1750897981823,4.17104995,143.85,143.81,18.64964886]
[1750897981824,5.17546443,143.82,143.81,18.64964886]
[1750897982198,5.17507385,143.85,143.81,46.94964886]
[1750897982400,5.17507385,143.84,143.81,46.94964886]
[1750897982634,5.17507385,143.83,143.82,25.88710786]
[1750897983125,5.17507385,143.83,143.82,18.64964886]
[1750897987521,5.17507385,143.83,143.8,13.15980111]
[1750897987722,5.18995881,143.82,143.81,18.64964886]
[1750897997036,10.68102366,143.86,143.81,25.60326821]
[1750897997339,5.19254563,143.85,143.81,18.64964886]
[1750897997538,5.19254563,143.84,143.81,18.64964886]
[1750897997838,5.19254563,143.83,143.81,18.64964886]
[1750897998021,5.19254563,143.82,143.8,18.64964886]
[1750897998215,5.19254563,143.81,143.8,18.64964886]
[1750898001231,5.19254563,143.81,143.78,36.79751946]
[1750898001232,5.19254563,143.81,143.79,18.64964886]
[1750898001442,5.19100072,143.8,143.77,18.64964886]
[1750898001640,5.19100072,143.79,143.77,18.64964886]
[1750898001942,26.0,143.82,143.77,18.64964886]
[1750898002113,5.19124413,143.81,143.77,18.64964886]
[1750898002316,5.19124413,143.8,143.77,18.64964886]
[1750898002514,26.0,143.82,143.77,18.64964886]
[1750898002723,5.1900526,143.81,143.77,18.64964886]
[1750898002920,5.1900526,143.8,143.77,18.64964886]
[1750898003120,30.17198826,143.82,143.77,18.64964886]
[1750898003333,5.1889667,143.81,143.77,18.64964886]
[1750898003610,5.1889667,143.8,143.77,25.60509615]
[1750898003841,30.17198826,143.82,143.77,25.60509615]
[1750898004043,5.1889643,143.81,143.77,25.60509615]
[1750898004219,5.1889643,143.8,143.77,25.60509615]
[1750898004424,30.17198826,143.82,143.77,25.60509615]
[1750898004725,5.18797977,143.81,143.77,25.60509615]
[1750898004921,5.18797977,143.8,143.77,25.60509615]
[1750898005121,26.0,143.82,143.77,25.60509615]
[1750898005319,5.18779349,143.81,143.77,25.60509615]
[1750898005518,6.47020151,143.85,143.78,0.42648471]
[1750898005725,5.18696136,143.84,143.79,48.50504886]
[1750898005925,10.68102946,143.86,143.8,0.42648471]
[1750898005926,5.18696136,143.83,143.8,0.42648471]
[1750898006133,0.04,143.86,143.8,0.42648471]
[1750898006311,5.18638291,143.85,143.8,0.42648471]
[1750898006640,5.18638291,143.84,143.8,0.42648471]
[1750898006842,5.18638291,143.83,143.8,0.42648471]
[1750898007040,0.04,143.86,143.82,18.64964886]
[1750898007243,5.18636125,143.85,143.82,46.96964886]
[1750898007448,5.18636125,143.84,143.82,46.96964886]
[1750898007614,5.18636125,143.83,143.82,46.96964886]
[1750898008229,5.18636125,143.83,143.82,18.64964886]
[1750898008542,5.18636125,143.83,143.8,28.32]
[1750898008866,10.68094963,143.86,143.81,18.64964886]
[1750898009029,5.18715717,143.85,143.81,18.64964886]
[1750898009336,5.18715717,143.84,143.81,18.64964886]
[1750898009539,4.21074812,143.86,143.81,18.64964886]
[1750898009540,5.18715717,143.83,143.81,18.64964886]
[1750898009843,4.21074812,143.86,143.81,25.60308443]
[1750898010040,5.18741421,143.85,143.81,25.60308443]
[1750898010224,5.18741421,143.84,143.81,25.60308443]
[1750898010423,5.18741421,143.83,143.81,25.60308443]
[1750898010722,4.21074812,143.86,143.81,25.60308443]
[1750898011041,5.18777894,143.85,143.81,25.60308443]
[1750898011228,5.18777894,143.84,143.81,25.60308443]
[1750898011538,5.18777894,143.83,143.81,25.60308443]
[1750898011742,0.04,143.86,143.81,25.60308443]
[1750898011944,5.1883676,143.85,143.81,25.60308443]
[1750898012141,5.1883676,143.84,143.81,25.60308443]
[1750898012323,5.1883676,143.83,143.81,25.60308443]
[1750898012525,6.51020151,143.86,143.81,25.60308443]
[1750898012823,5.1888892,143.85,143.81,25.60308443]
[1750898013023,5.1888892,143.84,143.81,25.60308443]
[1750898013243,5.1888892,143.83,143.81,25.60308443]
[1750898013436,0.04,143.86,143.81,25.60308443]
[1750898013636,5.18947733,143.85,143.81,25.60308443]
[1750898013939,5.18947733,143.84,143.81,25.60308443]
[1750898014145,0.04,143.86,143.81,25.60308443]
[1750898014146,5.18947733,143.83,143.81,25.60308443]
[1750898014449,0.04,143.86,143.81,25.60308443]
[1750898014627,5.1902406,143.85,143.81,25.60308443]
[1750898014830,5.1902406,143.84,143.81,25.60308443]
[1750898015034,5.1902406,143.83,143.81,25.60308443]
[1750898015237,0.04,143.86,143.81,25.60308443]
[1750898015533,5.19106432,143.85,143.81,25.60308443]
[1750898015836,5.19106432,143.84,143.81,25.60308443]
[1750898016034,5.19106432,143.83,143.81,25.60308443]
[1750898016234,0.04,143.86,143.81,25.60308443]
[1750898016424,5.19195972,143.85,143.81,25.60308443]
[1750898016625,5.19195972,143.84,143.81,25.60308443]
[1750898016825,5.19195972,143.83,143.81,25.60308443]
[1750898017051,0.04,143.86,143.81,25.60308443]
[1750898017229,5.19195972,143.85,143.81,25.60308443]
[1750898017432,5.19195972,143.84,143.81,25.60308443]
[1750898017632,5.19195972,143.83,143.81,25.60308443]
[1750898017839,0.04,143.86,143.81,25.60308443]
[1750898018036,5.19292464,143.85,143.81,25.60308443]
[1750898018241,0.04,143.86,143.81,25.60308443]
[1750898018242,5.19292464,143.84,143.81,25.60308443]
[1750898018442,5.19292464,143.83,143.81,25.60308443]
[1750898018744,6.51020151,143.86,143.81,25.60308443]
[1750898018946,5.19398384,143.85,143.81,25.60308443]
[1750898019149,6.51020151,143.86,143.83,18.64964886]
[1750898019150,0.04,143.86,143.83,18.64964886]
[1750898019354,5.19386938,143.85,143.81,18.933972]
[1750898019534,5.19386938,143.84,143.81,18.933972]
[1750898019735,5.19386938,143.83,143.81,18.933972]
[1750898020052,4.21080665,143.86,143.81,18.933972]
[1750898020354,5.19450811,143.85,143.81,18.933972]
[1750898020534,5.19450811,143.84,143.81,18.933972]
[1750898020735,5.19450811,143.83,143.81,18.933972]
[1750898020934,4.21080665,143.86,143.81,18.933972]
[1750898021240,5.19568611,143.85,143.81,25.88726182]
[1750898021549,5.19568611,143.84,143.81,25.88726182]
[1750898021754,5.19568611,143.83,143.81,25.88726182]
[1750898021927,5.19568611,143.82,143.81,25.88726182]
[1750898025764,5.19568611,143.82,143.81,18.64964886]
[1750898025943,5.19568611,143.82,143.79,1.5554]
[1750898026151,5.19568611,143.82,143.79,18.64964886]
[1750898026152,5.19568611,143.81,143.79,18.64964886]
[1750898026368,5.19568611,143.8,143.79,18.64964886]
[1750898027983,5.19568611,143.8,143.76,46.94964886]
[1750898028287,5.19568611,143.79,143.76,46.94964886]
[1750898028578,5.19568611,143.78,143.76,46.94964886]
[1750898028768,4.17231238,143.81,143.76,18.64964886]
[1750898029080,5.19936698,143.8,143.76,18.64964886]
[1750898029249,5.19936698,143.79,143.76,18.64964886]
[1750898029448,5.19936698,143.78,143.76,18.64964886]
[1750898029768,10.64251389,143.81,143.76,18.64964886]
[1750898029966,5.19867993,143.8,143.76,18.64964886]
[1750898030142,5.19867993,143.79,143.76,18.64964886]
[1750898030347,5.19867993,143.78,143.76,18.64964886]
[1750898030546,5.19867993,143.77,143.76,18.64964886]
[1750898032474,4.17261429,143.8,143.76,18.64964886]
[1750898032771,5.19513365,143.79,143.76,18.64964886]
[1750898033069,5.19513365,143.78,143.76,18.64964886]
[1750898033245,4.17261429,143.8,143.76,18.64964886]
[1750898033446,5.19402643,143.79,143.76,18.64964886]
[1750898033684,5.19402643,143.78,143.76,18.64964886]
[1750898033984,4.17261429,143.8,143.76,18.64964886]
[1750898034283,5.19402643,143.79,143.76,18.64964886]
[1750898034586,5.19402643,143.78,143.76,18.64964886]
[1750898034756,5.19327344,143.77,143.76,18.64964886]
[1750898037380,5.19327344,143.77,143.75,18.64964886]
[1750898037583,4.17279763,143.79,143.75,18.64964886]
[1750898037774,5.1895555,143.78,143.75,18.64964886]
[1750898038084,5.1895555,143.77,143.75,18.64964886]
[1750898038257,4.17246175,143.8,143.75,18.64964886]
[1750898038458,5.18852188,143.79,143.75,18.64964886]
[1750898038658,5.18852188,143.78,143.75,18.64964886]
[1750898038984,5.18852188,143.77,143.75,18.64964886]
[1750898039188,150.67246175,143.8,143.75,18.64964886]
[1750898039488,5.18759402,143.79,143.75,18.64964886]
[1750898039775,5.18759402,143.78,143.75,25.60591123]
[1750898039982,5.18759402,143.79,143.75,25.60591123]
[1750898040180,146.5,143.8,143.75,25.60591123]
[1750898040370,5.18672625,143.79,143.75,25.60591123]
[1750898040563,146.5,143.8,143.75,25.60591123]
[1750898040767,5.18662515,143.79,143.75,25.60591123]
[1750898040969,146.5,143.8,143.75,25.60591123]
[1750898041169,5.18662515,143.79,143.75,25.60591123]
[1750898041366,146.5,143.8,143.75,25.60591123]
[1750898041568,5.18633958,143.79,143.75,25.60591123]
[1750898041781,146.5,143.8,143.75,25.60591123]
[1750898041961,5.18634258,143.79,143.75,25.60591123]
[1750898042281,146.5,143.8,143.76,0.28432314]
[1750898042587,146.5,143.8,143.75,25.60591123]
[1750898042588,5.18621857,143.79,143.78,18.64964886]
[1750898043155,5.18621857,143.82,143.78,18.64964886]
[1750898043353,5.18621857,143.81,143.78,18.64964886]
[1750898043576,4.17163488,143.83,143.78,18.64964886]
[1750898043878,5.18550277,143.82,143.78,18.64964886]
[1750898044068,5.18550277,143.81,143.78,18.64964886]
[1750898044274,4.17163488,143.83,143.78,25.60453906]
[1750898044484,5.18519458,143.82,143.78,25.60453906]
[1750898044663,5.18519458,143.81,143.78,25.60453906]
[1750898044861,6.04,143.85,143.79,0.42648471]
[1750898045106,5.18440867,143.84,143.81,18.64964886]
[1750898045259,5.18440867,143.83,143.8,28.3]
[1750898045580,5.18440867,143.82,143.8,28.3]
[1750898045773,10.21104327,143.85,143.8,28.3]
[1750898045954,5.18513514,143.84,143.8,28.3]
[1750898046155,5.18513514,143.83,143.8,28.3]
[1750898046392,5.18513514,143.82,143.8,28.3]
[1750898046678,5.18497606,143.83,143.81,18.64964886]
[1750898046978,5.18433446,143.84,143.81,18.64964886]
[1750898047156,0.04,143.86,143.81,18.64964886]
[1750898047361,5.18408816,143.85,143.81,18.64964886]
[1750898047560,5.18408816,143.84,143.81,18.64964886]
[1750898047873,5.18408816,143.85,143.81,18.64964886]
[1750898048078,5.18408816,143.84,143.81,18.64964886]
[1750898048277,5.18408816,143.85,143.83,18.64964886]
[1750898048476,5.18408816,143.84,143.83,18.64964886]
[1750898048671,5.18408816,143.85,143.83,18.64964886]
[1750898048892,5.18408816,143.84,143.83,18.64964886]
[1750898049088,5.18408816,143.85,143.83,18.64964886]
[1750898049271,5.18408816,143.84,143.83,18.64964886]
[1750898049571,5.18408816,143.85,143.81,25.60318592]
[1750898049753,5.18408816,143.84,143.81,25.60318592]
[1750898049958,5.18408816,143.85,143.81,25.60318592]
[1750898050156,5.18408816,143.84,143.81,25.60318592]
[1750898050381,5.18408816,143.85,143.81,18.64964886]
[1750898050572,5.18342293,143.84,143.81,18.64964886]
[1750898050782,5.18342293,143.83,143.81,18.64964886]
[1750898050960,4.21075541,143.86,143.81,18.64964886]
[1750898051268,5.18373928,143.85,143.81,18.64964886]
[1750898051668,4.21075541,143.86,143.81,18.64964886]
[1750898057489,26.0,143.84,143.8,28.3]
[1750898060195,30.17149582,143.84,143.8,28.3]
[1750898061486,30.17149582,143.84,143.79,18.64964886]
[1750898063888,26.0,143.83,143.79,18.64964886]
[1750898064999,30.17164491,143.83,143.79,18.64964886]
[1750898066599,26.0,143.82,143.74,14.33947864]
[1750898066797,172.5,143.82,143.75,18.64964886]
[1750898067005,172.5,143.82,143.74,34.8912]
[1750898067183,172.5,143.82,143.75,18.64964886]
[1750898068002,4.17217161,143.81,143.75,18.64964886]
[1750898068300,4.17217161,143.81,143.75,25.60603039]
[1750898068702,4.17217161,143.81,143.75,18.64964886]
[1750898072008,4.17275192,143.79,143.75,18.64964886]
[1750898072802,150.67250086,143.8,143.75,18.64964886]
[1750898075702,146.5,143.8,143.75,25.60616349]
[1750898076006,150.67252078,143.8,143.75,25.60616349]
[1750898077385,150.67252078,143.8,143.75,18.64964886]
[1750898084418,150.67252078,143.8,143.75,25.60613108]
[1750898084617,150.67252078,143.8,143.75,18.64964886]
[1750898091135,146.5,143.79,143.72,7.24210973]
[1750898091308,146.5,143.79,143.73,18.64964886]
[1750898091712,146.5,143.78,143.73,18.64964886]
[1750898092117,150.67317306,143.78,143.73,18.64964886]
[1750898093620,150.67317306,143.78,143.73,25.607102]
[1750898093830,146.5,143.78,143.73,25.607102]
[1750898094330,150.67310888,143.78,143.73,25.607102]
[1750898094514,150.67310888,143.78,143.73,18.64964886]
[1750898095830,150.67310888,143.78,143.73,25.60695766]
[1750898097628,150.67310888,143.78,143.73,18.64964886]
[1750898098534,152.22690888,143.78,143.72,18.64964886]
[1750898099430,152.22690888,143.78,143.72,6.95793292]
[1750898099610,152.22690888,143.78,143.72,25.60758178]
[1750898101536,146.5,143.77,143.72,25.60758178]
[1750898102253,150.67342024,143.77,143.72,25.60758178]
[1750898103234,150.67342024,143.77,143.72,18.64964886]
[1750898103418,150.67342024,143.77,143.7,6.95876506]
[1750898103619,26.0,143.74,143.68,18.66964886]
[1750898103917,146.5,143.76,143.68,18.66964886]
[1750898103918,27.6172,143.73,143.68,18.66964886]
[1750898104733,31.79174013,143.73,143.68,18.66964886]
[1750898105321,146.5,143.76,143.69,18.933972]
[1750898105715,146.5,143.76,143.69,0.28432314]
[1750898105921,31.83620071,143.78,143.69,19.07613357]
[1750898107033,31.83620071,143.78,143.71,18.933972]
[1750898107239,31.83620071,143.78,143.73,18.64964886]
[1750898113985,31.83620071,143.78,143.72,28.3]
[1750898116345,4.1736227,143.76,143.72,28.3]
[1750898120359,26.0,143.73,143.69,18.64964886]
[1750898120559,172.5,143.75,143.69,18.64964886]
[1750898122950,4.17420342,143.74,143.69,18.64964886]
[1750898126953,4.17420342,143.74,143.69,46.94964886]
[1750898129368,4.17420342,143.74,143.69,18.64964886]
[1750898129547,4.17420342,143.74,143.69,46.94964886]
[1750898133072,26.0,143.72,143.69,18.64964886]
[1750898135489,146.5,143.75,143.69,25.6089385]
[1750898135772,146.5,143.75,143.7,0.42648471]
[1750898136068,146.5,143.75,143.72,18.64964886]
[1750898136274,26.0,143.75,143.72,18.64964886]
[1750898136871,152.33632219,143.78,143.72,18.64964886]
[1750898137779,152.33632219,143.78,143.72,25.60730376]
[1750898138669,146.5,143.78,143.72,25.60730376]
[1750898139057,150.67304595,143.78,143.72,25.60730376]
[1750898142791,146.5,143.78,143.72,25.60730376]
[1750898146265,146.5,143.78,143.73,0.42648471]
[1750898146468,0.04,143.8,143.75,18.64964886]
[1750898146665,0.04,143.8,143.77,18.64964886]
[1750898147887,5.18381047,143.79,143.77,18.64964886]
[1750898148085,0.04,143.8,143.77,18.64964886]
[1750898148292,0.04,143.8,143.79,18.64964886]
[1750898148460,5.23018674,143.8,143.79,18.64964886]
[1750898149265,0.04,143.8,143.79,18.64964886]
[1750898151881,0.04,143.8,143.79,20.566472]
[1750898152690,0.04,143.8,143.79,27.52105854]
[1750898153189,0.04,143.8,143.79,34.03992011]
[1750898153776,0.04,143.8,143.79,62.33992011]
[1750898158189,0.04,143.84,143.83,0.28432314]
[1750898158377,0.04,143.84,143.83,47.37613357]
[1750898159287,0.04,143.84,143.83,54.328786]
[1750898160897,0.04,143.84,143.83,46.94964886]
[1750898161082,0.04,143.84,143.83,18.64964886]
[1750898161487,0.04,143.84,143.82,18.64964886]
[1750898175093,0.04,143.84,143.81,28.3]
[1750898175294,0.04,143.84,143.79,46.92964886]
[1750898176310,4.21130144,143.84,143.79,46.92964886]
[1750898178003,9.37298636,143.84,143.79,46.92964886]
[1750898178205,4.21130144,143.84,143.79,46.92964886]
[1750898178508,9.37298636,143.84,143.79,46.92964886]
[1750898178713,4.21130144,143.84,143.79,46.92964886]
[1750898179017,9.37298636,143.84,143.79,46.92964886]
[1750898179215,4.21130144,143.84,143.79,46.92964886]
[1750898179389,5.16168492,143.83,143.79,46.92964886]
[1750898180507,9.33356643,143.82,143.77,46.92964886]
[1750898180716,4.17188151,143.82,143.77,18.64964886]
[1750898180920,5.16168492,143.81,143.77,18.64964886]
[1750898182087,5.16168492,143.81,143.77,25.60510975]
[1750898182284,4.17188151,143.82,143.77,25.60510975]
[1750898182515,5.17847509,143.81,143.77,25.60510975]
[1750898182708,4.17188151,143.82,143.77,25.60510975]
[1750898182910,5.17847509,143.81,143.77,25.60510975]
[1750898183109,4.17159146,143.83,143.77,25.60510975]
[1750898183415,5.17847629,143.82,143.77,25.60510975]
[1750898183598,5.17847629,143.81,143.77,25.60510975]
[1750898183801,4.17159146,143.83,143.77,25.60510975]
[1750898183991,5.18009474,143.82,143.77,25.60510975]
[1750898184197,5.18009474,143.81,143.77,25.60510975]
[1750898184408,5.18143699,143.8,143.77,25.60510975]
[1750898184595,5.18143699,143.81,143.77,25.60510975]
[1750898184795,5.18143699,143.8,143.78,0.28432314]